fUSD/lending_fUSD_20241109
["ID","MTS","AMOUNT","RATE_DAILY","PERIOD"]
[341748138,1731190238562,-720.62291816,0.000145,2]
[341748145,1731190238614,-6584.74,0.000145,2]
[341748291,1731190240091,-1938.28879912,0.000145,2]
[341748293,1731190240103,-3152.71196414,0.000145,2]
[341748295,1731190240115,-2357.470003,0.000145,2]
[341748367,1731190241338,-1076.57999999,0.000145,2]
[341748368,1731190241350,-3716.56401421,0.000145,2]
[341748369,1731190241948,150.0,0.00016,4]
[341748370,1731190242811,-740.01707293,0.000145,2]
[341748371,1731190242824,-3883.0723924,0.000145,2]
[341748372,1731190242863,-1683.6917,0.000145,2]
[341748373,1731190242876,-429.04175051,0.000145,2]
[341748374,1731190242887,-472.02580349,0.000145,2]
[341748385,1731190243232,-5017.313864,0.000145,2]
[341748386,1731190243242,-624.31310412,0.000145,2]
[341748387,1731190243391,-429.6337483,0.000145,2]
[341748388,1731190243403,-494.3184395,0.000145,2]
[341748389,1731190243414,-2669.17281841,0.000145,2]
[341748390,1731190243425,-10615.32576428,0.000145,2]
[341748393,1731190246144,-16736.87240115,0.000145,2]
[341748394,1731190246259,-3737.73560048,0.000145,2]
[341748397,1731190485230,1062.2,0.00011744,2]
[341748398,1731190573234,800.0,0.00026986,120]
[341748400,1731190916436,135215.477,0.00027,60]
[341748406,1731191266055,1009.09,0.00011408,2]
[341748448,1731191433307,-561.19,0.0001285,2]
[341748449,1731191433317,-250.0,0.00013307,2]
[341748450,1731191433327,-277.61,0.00013326,2]
[341748451,1731191433336,-1000.0,0.00013391,2]
[341748452,1731191433346,-385.75,0.00013425,2]
[341748453,1731191433355,-179.69,0.00013484,2]
[341748454,1731191433365,-158.45,0.00013512,2]
[341748455,1731191433375,-300.0,0.00013554,2]
[341748456,1731191433384,-300.0,0.00013554,2]
[341748457,1731191433393,-1675.43644554,0.00013555,2]
[341748458,1731191433406,-3280.14140929,0.00013555,2]
[341748459,1731191438252,-2105.15940939,0.00013555,2]
[341748460,1731191438265,-575.30635287,0.00013555,2]
[341748462,1731191438277,-675.54813812,0.00013555,2]
[341748463,1731191438289,-15588.40824479,0.00013555,2]
[341748464,1731191438298,-189.84,0.00013556,2]
[341748465,1731191438307,-161.84,0.00013571,2]
[341748466,1731191438316,-1009.09,0.00013672,2]
[341748467,1731191438325,-206.88,0.00013815,2]
[341748468,1731191438334,-10044.0,0.00013918,2]
[341748469,1731191438345,-150.0,0.00014122,2]
[341748471,1731191438357,-381.26787789,0.00014158,2]
[341748472,1731191438366,-150.0,0.00014199,2]
[341748473,1731191438374,-4361.16877354,0.000142,2]
[341748474,1731191438385,-3655.00982646,0.000142,2]
[341748475,1731191438394,-754.15747952,0.000142,2]
[341748476,1731191438498,-245.84252048,0.000142,2]
[341748477,1731191438507,-1182.79668099,0.000142,2]
[341748478,1731191438548,-1317.20331901,0.000142,2]
[341748479,1731191438557,-104.35341474,0.00014289,2]
[341748480,1731191438701,-1764.8605584,0.00014289,2]
[341748481,1731191438710,-855.21,0.0001429,3]
[341748482,1731191438720,-165.26985217,0.00014299,2]
[341748483,1731191438729,-12643.10466437,0.000143,2]
[341748620,1731191440180,-379.64,0.000143,2]
[341748629,1731191440250,-576.01426302,0.000143,2]
[341748631,1731191440261,-1489.59725044,0.000143,2]
[341748633,1731191440272,-1383.89329523,0.000143,2]
[341748640,1731191440405,-9800.0,0.000143,2]
[341748641,1731191440425,-406.24944498,0.000143,2]
[341748650,1731191444210,-1484.43780303,0.000143,2]
[341748651,1731191444230,-5001.97895788,0.000143,2]
[341748652,1731191444242,-310.24495594,0.000143,2]
[341748653,1731191444300,-5771.6499143,0.000143,2]
[341748654,1731191444355,-413.97778512,0.000143,2]
[341748655,1731191444476,-5011.01938747,0.000143,2]
[341748656,1731191444727,-1350.79698859,0.000143,2]
[341748658,1731191446409,-1588.72414878,0.000143,2]
[341748659,1731191446424,-34622.83089288,0.000143,2]
[341748660,1731191446530,-426.31964775,0.000143,2]
[341748661,1731191446542,-6283.41814056,0.000143,2]
[341748662,1731191446554,-1915.85,0.000143,2]
[341748663,1731191446584,-2945.29549952,0.000143,2]
[341748664,1731191446596,-15039.1,0.000143,2]
[341748665,1731191446612,-4732.9047737,0.000143,2]
[341748667,1731191935257,908.18,0.00011658,2]
[341748689,1731192632560,-1000.0,0.00013295,2]
[341748690,1731192632570,-300.0,0.00013387,2]
[341748691,1731192632579,-200.0,0.00013388,2]
[341748692,1731192632588,-17274.41293486,0.00013388,2]
[341748693,1731192632600,-6625.58706514,0.00013388,2]
[341748694,1731192632609,-258.62,0.00013445,2]
[341748695,1731192632619,-166.02,0.00013464,2]
[341748696,1731192632628,-16930.4149085,0.00013515,2]
[341748697,1731192632637,-250.0,0.00013515,2]
[341748698,1731192632647,-164.31,0.00013558,2]
[341748699,1731192632656,-3969.50407056,0.00013587,2]
[341748700,1731192632666,-771.59316855,0.00013591,2]
[341748701,1731192632675,-412.4,0.00013592,2]
[341748702,1731192632685,-3888.02,0.00013592,2]
[341748703,1731192632693,-289.64,0.00013592,2]
[341748704,1731192632702,-1529.8,0.00013597,2]
[341748705,1731192632711,-4161.87,0.00013597,2]
[341748706,1731192632720,-908.18,0.00013922,2]
[341748707,1731192632729,-258.62,0.00014117,2]
[341748708,1731192632739,-150.0,0.00014159,2]
[341748709,1731192632748,-3055.87702249,0.0001416,2]
[341748710,1731192632757,-15805.27626085,0.0001416,2]
[341748711,1731192632766,-169.60759451,0.00014199,2]
[341748712,1731192632775,-640.68219954,0.00014199,2]
[341748713,1731192632784,-182.25580579,0.00014199,2]
[341748714,1731192632794,-6861.7849,0.000142,2]
[341748715,1731192632803,-30361.7874,0.000142,2]
[341748716,1731192632812,-254.05,0.000142,2]
[341748717,1731192632821,-224.3651,0.000142,2]
[341748719,1731192632830,-263.3692,0.000142,2]
[341748721,1731192632839,-1357.6242,0.000142,2]
[341748722,1731192632848,-2103.2236,0.000142,2]
[341748723,1731192632857,-2871.0,0.00014355,2]
[341748724,1731192632866,-1851.0899,0.00014389,2]
[341748725,1731192632875,-1882.83833694,0.0001439,2]
[341748726,1731192632884,-219.58873758,0.00014393,2]
[341748727,1731192632894,-2285.25982835,0.000144,2]
[341748728,1731192632903,-164.33035333,0.000144,2]
[341748729,1731192632914,-162.84533251,0.000144,2]
[341748730,1731192632923,-213.53891616,0.000144,2]
[341748731,1731192632932,-5477.55894419,0.000144,2]
[341748732,1731192632941,-179.0897819,0.000144,2]
[341748733,1731192632950,-215.73203111,0.000144,2]
[341748734,1731192632961,-449.8182908,0.000144,2]
[341748735,1731192632970,-1882.83833688,0.00014447,2]
[341748736,1731192632980,-219.58873758,0.00014465,2]
[341748737,1731192632989,-178.99856788,0.00014473,2]
[341748738,1731192632998,-500.0,0.00014473,2]
[341748739,1731192633008,-162.84533251,0.00014483,2]
[341748740,1731192633018,-4909.7885437,0.00014489,2]
[341748741,1731192633027,-29150.722395,0.00014489,2]
[341748742,1731192633037,-8378.9224055,0.00014489,2]
[341748743,1731192633047,-215.62078579,0.0001449,2]
[341748744,1731192633057,-215.62078579,0.0001449,2]
[341748745,1731192633067,-215.62078579,0.0001449,2]
[341748746,1731192633076,-175871.0,0.00014493,2]
[341748747,1731192633085,-794.0,0.00014493,2]
[341748748,1731192633094,-500.0,0.00014498,2]
[341748749,1731192633104,-500.0,0.00014498,2]
[341748750,1731192633113,-513.84984378,0.00014498,2]
[341748751,1731192633123,-500.0,0.00014498,2]
[341748752,1731192633132,-500.0,0.00014498,2]
[341748753,1731192633142,-500.0,0.00014498,2]
[341748754,1731192633151,-500.0,0.00014498,2]
[341748755,1731192633160,-500.0,0.00014498,2]
[341748756,1731192633172,-4832.32215393,0.00014499,2]
[341748757,1731192633181,-528.15,0.00014499,2]
[341748758,1731192633190,-38299.52288156,0.000145,2]
[341748759,1731192633257,-982.43284384,0.00013296,2]
[341748760,1731192633278,-1450.95715616,0.00013296,2]
[341748761,1731192633287,-36488.91760648,0.000145,2]
[341748763,1731192638452,-500.0,0.00014498,2]
[341748764,1731192638462,-500.0,0.00014498,2]
[341748765,1731192638471,-142461.86091742,0.000145,2]
[341748766,1731192638482,-393.01182328,0.000145,2]
[341748767,1731192638494,-587.83016339,0.000145,2]
[341748768,1731192638597,-684.3000014,0.000145,2]
[341748769,1731192638608,-4473.06322101,0.000145,2]
[341748770,1731192638625,-888.11412877,0.000145,2]
[341748887,1731192640443,-379.973695,0.00014065,2]
[341748888,1731192640453,-5488.77043262,0.000145,2]
[341748889,1731192640464,-5561.94568684,0.000145,2]
[341748890,1731192640475,-1219.53,0.000145,2]
[341748891,1731192640603,-2243.43766622,0.000145,2]
[341748892,1731192640614,-622.65000001,0.000145,2]
[341748912,1731192643593,-13632.3884609,0.000145,2]
[341748913,1731192643604,-1869.53014484,0.000145,2]
[341748914,1731192643716,-679.14877492,0.000145,2]
[341748915,1731192643842,-1233.18429694,0.000145,2]
[341748929,1731192648019,-448.92196838,0.000145,2]
[341748930,1731192648030,-14753.46375233,0.000145,2]
[341748931,1731192648042,-382610.36444735,0.000145,2]
[341748932,1731192648053,-669403.58422631,0.000145,2]
[341748933,1731192648591,-2323.100225,0.000145,2]
[341748934,1731192648603,-22381.0,0.000145,2]
[341748935,1731192657340,1327.65,0.00011881,2]
[341748936,1731192673747,64633.0,0.00027,60]
[341748937,1731192747253,502.0,0.000144,5]
[341748938,1731192814840,-206936.4377565,0.000145,3]
[341748939,1731192843425,-150.0,0.00013604,2]
[341748940,1731192843447,-500.0,0.00013604,2]
[341748941,1731192843471,-250.0,0.00013618,2]
[341748942,1731192843492,-1852.42,0.00013657,2]
[341748943,1731192843517,-470.08,0.00013667,2]
[341748944,1731192843539,-710.86,0.00013699,2]
[341748945,1731192843563,-811.10865431,0.00013803,2]
[341748946,1731192843585,-200.0,0.00013803,2]
[341748947,1731192843607,-153.75,0.00013911,2]
[341748948,1731192843629,-1327.65,0.00014145,2]
[341748949,1731192843650,-3609.224,0.00014293,2]
[341748950,1731192843672,-1652.0,0.00014355,2]
[341748951,1731192843695,-6466.0422,0.00014389,2]
[341748952,1731192843716,-150.0,0.00014392,2]
[341748953,1731192843737,-100000.0,0.00014393,2]
[341748954,1731192843759,-1935.6968,0.00014393,2]
[341748955,1731192843781,-500.0,0.00014473,2]
[341748956,1731192843805,-11224.1610893,0.00014488,2]
[341748957,1731192843827,-5107.7959383,0.00014488,2]
[341748958,1731192843850,-500.0,0.00014498,2]
[341748959,1731192843874,-500.0,0.00014498,2]
[341748960,1731192843898,-500.0,0.00014498,2]
[341748961,1731192843920,-101327.77356159,0.000145,2]
[341748962,1731192954236,-500.0,0.00013817,2]
[341748963,1731192954279,-8203.16061306,0.000143,2]
[341748964,1731192954314,-878.645529,0.000144,2]
[341748965,1731192954347,-164.33035333,0.000144,2]
[341748966,1731192954381,-1445.829,0.000144,2]
[341748967,1731192954420,-500.0,0.00014473,2]
[341748968,1731192954454,-300.0,0.00014498,2]
[341748969,1731192954490,-300.221613,0.00014498,2]
[341748970,1731192954525,-645.14,0.00014499,2]
[341748971,1731192954562,-500.0,0.00014499,2]
[341748972,1731192954599,-500.0,0.00014499,2]
[341748973,1731192954635,-500.0,0.00014499,2]
[341748974,1731192954672,-500.0,0.00014499,2]
[341748975,1731192954709,-500.0,0.00014499,2]
[341748976,1731192954745,-500.0,0.00014499,2]
[341748977,1731192954783,-500.0,0.00014499,2]
[341748978,1731192954821,-500.0,0.00014499,2]
[341748979,1731192954860,-617.9084672,0.00014499,2]
[341748980,1731192954896,-203339.04867215,0.000145,2]
[341748981,1731192954931,-1000.0,0.000145,2]
[341748982,1731192954966,-1033.28022898,0.000145,2]
[341748983,1731192954999,-16272.43552328,0.000145,2]
[341748984,1731193240943,-250.0,0.00013789,2]
[341748985,1731193240965,-466.33,0.00013792,2]
[341748987,1731193266760,-3804.19,0.00013801,2]
[341748988,1731193266782,-164.31,0.00013801,2]
[341748989,1731193283758,-197.32,0.00013809,2]
[341748990,1731193283779,-186.8,0.00013812,2]
[341748991,1731193292129,2695.22,0.00013791,2]
[341748992,1731193302397,-10000.0,0.00013791,2]
[341748993,1731193314795,-10000.0,0.00013791,2]
[341748995,1731193334510,-1204.78,0.00013791,2]
[341748996,1731193334533,-8795.22,0.000143,2]
[341748997,1731193345413,-7136.2908,0.000143,2]
[341748998,1731193345435,-300.0,0.00014399,2]
[341748999,1731193345459,-2563.7092,0.000144,2]
[341749000,1731193358678,-344.71,0.00013789,2]
[341749001,1731193358700,-1000.0,0.00013789,2]
[341749002,1731193358720,-368.66,0.00013792,2]
[341749003,1731193358743,-4961.1249,0.000144,2]
[341749004,1731193358763,-3325.5051,0.000144,2]
[341749005,1731193380854,-1672.28,0.00013789,2]
[341749006,1731193380874,-7594.48,0.00013789,2]
[341749007,1731193380894,-733.24,0.000144,2]
[341749008,1731193388049,-150.0,0.00014399,2]
[341749009,1731193388071,-9850.0,0.000144,2]
[341749010,1731193392176,300.0,0.00014399,120]
[341749011,1731193392366,300.0,0.00014487,120]
[341749012,1731193392499,300.0,0.00014499,120]
[341749013,1731193392649,300.0,0.00014774,120]
[341749014,1731193392802,300.0,0.00014863,120]
[341749015,1731193392954,300.0,0.00014883,120]
[341749016,1731193400740,-10000.0,0.000144,2]
[341749017,1731193442114,-10000.0,0.000144,2]
[341749018,1731193450141,-10000.0,0.000144,2]
[341749019,1731193455981,-10000.0,0.000144,2]
[341749020,1731193461396,-10000.0,0.000144,2]
[341749021,1731193470041,-10000.0,0.000144,2]
[341749022,1731193476259,-10000.0,0.000144,2]
[341749023,1731193478500,1194.88,0.00011884,2]
[341749024,1731193482535,-1194.88,0.00014148,2]
[341749025,1731193482558,-7610.24,0.000144,2]
[341749026,1731193487047,-200.0,0.00013805,2]
[341749027,1731193487068,-9800.0,0.000144,2]
[341749028,1731193492681,-10000.0,0.000144,2]
[341749029,1731193498982,-10000.0,0.000144,2]
[341749030,1731193504131,-10000.0,0.000144,2]
[341749031,1731193509467,-10000.0,0.000144,2]
[341749032,1731193515214,-10000.0,0.000144,2]
[341749033,1731193520455,803.85,0.000141,7]
[341749034,1731193520773,-10000.0,0.000144,2]
[341749035,1731193525942,-423.93,0.00013817,2]
[341749036,1731193525965,-9576.07,0.000144,2]
[341749037,1731193537110,-10000.0,0.000144,2]
[341749038,1731193572264,300.0,0.00014399,120]
[341749039,1731193572432,300.0,0.00014487,120]
[341749040,1731193572605,300.0,0.00014499,120]
[341749041,1731193572766,300.0,0.00014774,120]
[341749042,1731193572926,300.0,0.00014863,120]
[341749043,1731193573083,300.0,0.00014883,120]
[341749044,1731193573236,300.0,0.0001489,120]
[341749045,1731193573400,300.0,0.00014899,120]
[341749046,1731193573556,354.17660247,0.00014399,120]
[341749051,1731193672355,160.725,0.0002551,60]
[341749052,1731193751791,151.2,0.00027,60]
[341749060,1731193831681,-166.02,0.00013769,2]
[341749061,1731193831690,-186.8,0.00013779,2]
[341749062,1731193831699,-250.0,0.00013819,2]
[341749063,1731193831709,-150.0,0.00014399,2]
[341749064,1731193831718,-6459.3992,0.000144,2]
[341749065,1731193831728,-1736.262,0.000144,2]
[341749066,1731193831739,-162.84533251,0.000144,2]
[341749067,1731193831755,-1874.46796258,0.000144,2]
[341749068,1731193831766,-213.53891615,0.000144,2]
[341749069,1731193831777,-1874.46796252,0.00014456,2]
[341749070,1731193831788,-500.0,0.00014473,2]
[341749071,1731193831800,-3502.8181172,0.0001449,2]
[341749072,1731193831811,-984.93270904,0.0001449,2]
[341749073,1731193831823,-8811.71524506,0.0001449,2]
[341749074,1731193831832,-517.2686363,0.0001449,2]
[341749075,1731193831842,-18913.57301499,0.000145,2]
[341749076,1731193831854,-1185.55142156,0.000145,2]
[341749077,1731193831865,-2133.44672341,0.000145,2]
[341749078,1731193831911,-769.6458504,0.000145,2]
[341749079,1731193831985,-9085.60430468,0.000145,2]
[341749082,1731193837686,-2528.25394299,0.0001449,2]
[341749083,1731193837697,-1123.54246651,0.0001449,2]
[341749084,1731193837707,-14560.07046632,0.000145,2]
[341749085,1731193837718,-9759.39672654,0.000145,2]
[341749086,1731193837730,-1294.9118,0.000145,2]
[341749087,1731193837978,-385.23900004,0.000145,2]
[341749088,1731193837989,-7231.4357689,0.000145,2]
[341749221,1731193839638,-5515.90098311,0.000145,2]
[341749233,1731193839752,-270.525589,0.000145,2]
[341749235,1731193839763,-534.30484756,0.000145,2]
[341749239,1731193839798,-8232.79849072,0.000145,2]
[341749241,1731193839809,-337.374,0.000145,2]
[341749243,1731193839821,-819.5846454,0.000145,2]
[341749245,1731193839832,-277.289385,0.000145,2]
[341749247,1731193839843,-6296.26739987,0.000145,2]
[341749302,1731193840634,-7016.26407753,0.000145,2]
[341749303,1731193840649,-7790.93070648,0.000145,2]
[341749304,1731193840659,-3322.21574214,0.000145,2]
[341749305,1731193840670,-325.47785302,0.000145,2]
[341749306,1731193840682,-2502.11589646,0.000145,2]
[341749329,1731193842924,-3017.94281293,0.000145,2]
[341749330,1731193842935,-2989.32957783,0.000145,2]
[341749331,1731193842946,-13025.47655888,0.000145,2]
[341749332,1731193842961,-33588.82351088,0.000145,2]
[341749333,1731193842978,-1323.34911343,0.000145,2]
[341749334,1731193843004,-445.70504057,0.000145,2]
[341749335,1731193843015,-315.21565683,0.000145,2]
[341749336,1731193843026,-378.53369005,0.000145,2]
[341749337,1731193843037,-1605.35180376,0.000145,2]
[341749338,1731193843048,-1055.52,0.000145,2]
[341749339,1731193843066,-1623.52145063,0.000145,2]
[341749340,1731193843079,-796.068646,0.000145,2]
[341749341,1731193843091,-7483.98605945,0.000145,2]
[341749342,1731193843104,-17457.22872971,0.000145,2]
[341749343,1731193843127,-37956.81690397,0.000145,2]
[341749344,1731193843138,-74046.77668772,0.000145,2]
[341749345,1731193843149,-1112.32159237,0.000145,2]
[341749346,1731193843160,-369.04840763,0.000145,2]
[341749347,1731193843171,-1675.01862099,0.000145,2]
[341749348,1731193843196,-1872.08172289,0.000145,2]
[341749349,1731193843207,-627.0,0.000145,2]
[341749350,1731193843218,-741.56502725,0.000145,2]
[341749351,1731193843229,-423.34575,0.000145,2]
[341749352,1731193843257,-610.20934057,0.000145,2]
[341749353,1731193843297,-1200.31549381,0.000145,2]
[341749354,1731193843309,-404.3835385,0.000145,2]
[341749355,1731193843320,-1699.97754593,0.000145,2]
[341749356,1731193843331,-1698.31428799,0.000145,2]
[341749357,1731193843343,-735.896,0.000145,2]
[341749358,1731193843356,-2846.00596719,0.000145,2]
[341749359,1731193843644,150.0,0.00016,4]
[341749363,1731193845505,-278.22991,0.000145,2]
[341749365,1731193845517,-216189.45558496,0.000145,2]
[341749366,1731193845540,-62658.00000032,0.000145,2]
[341749367,1731193845576,-363718.82475055,0.000145,2]
[341749368,1731193845588,-151.0,0.000145,2]
[341749370,1731193845600,-177.251297,0.000145,2]
[341749371,1731193845609,-151.0,0.000145,2]
[341749372,1731193845619,-151.0,0.000145,2]
[341749373,1731193845628,-151.0,0.000145,2]
[341749374,1731193845638,-151.0,0.000145,2]
[341749375,1731193845647,-151.0,0.000145,2]
[341749376,1731193845657,-151.0,0.000145,2]
[341749377,1731193845667,-151.0,0.000145,2]
[341749378,1731193845676,-151.0,0.000145,2]
[341749379,1731193845687,-480.098213,0.000145,2]
[341749380,1731193845697,-480.098213,0.000145,2]
[341749381,1731193845978,-480.098213,0.000145,2]
[341749382,1731193845991,-480.098213,0.000145,2]
[341749383,1731193846001,-151.0,0.000145,2]
[341749384,1731193846010,-151.0,0.000145,2]
[341749385,1731193846020,-151.204566,0.000145,2]
[341749386,1731193846029,-151.0,0.000145,2]
[341749387,1731193846038,-152.303778,0.000145,2]
[341749388,1731193846048,-151.0,0.000145,2]
[341749389,1731193846056,-151.0,0.000145,2]
[341749390,1731193846066,-151.0,0.000145,2]
[341749391,1731193846075,-151.0,0.000145,2]
[341749392,1731193846084,-151.0,0.000145,2]
[341749393,1731193846093,-151.0,0.000145,2]
[341749394,1731193846112,-151.0,0.000145,2]
[341749395,1731193846128,-151.0,0.000145,2]
[341749396,1731193846138,-151.0,0.000145,2]
[341749397,1731193846147,-151.0,0.000145,2]
[341749398,1731193846157,-151.0,0.000145,2]
[341749399,1731193846166,-151.0,0.000145,2]
[341749401,1731193846178,-151.0,0.000145,2]
[341749402,1731193846194,-151.0,0.000145,2]
[341749403,1731193846204,-151.0,0.000145,2]
[341749404,1731193846213,-151.0,0.000145,2]
[341749405,1731193846222,-151.0,0.000145,2]
[341749406,1731193846231,-151.0,0.000145,2]
[341749407,1731193846241,-151.0,0.000145,2]
[341749408,1731193846250,-151.0,0.000145,2]
[341749409,1731193846259,-151.0,0.000145,2]
[341749410,1731193846268,-188.941294,0.000145,2]
[341749411,1731193846277,-188.941294,0.000145,2]
[341749412,1731193846288,-151.0,0.000145,2]
[341749413,1731193846298,-151.0,0.000145,2]
[341749414,1731193846307,-151.0,0.000145,2]
[341749415,1731193846318,-242.792502,0.000145,2]
[341749416,1731193846329,-242.792502,0.000145,2]
[341749417,1731193846339,-242.792502,0.000145,2]
[341749418,1731193846351,-242.792502,0.000145,2]
[341749419,1731193846362,-189.782198,0.000145,2]
[341749420,1731193846371,-151.328526,0.000145,2]
[341749421,1731193846381,-151.0,0.000145,2]
[341749422,1731193846391,-151.0,0.000145,2]
[341749424,1731193846401,-189.782198,0.000145,2]
[341749426,1731193846411,-165.013284,0.000145,2]
[341749427,1731193846420,-165.013284,0.000145,2]
[341749428,1731193846431,-165.013284,0.000145,2]
[341749429,1731193846440,-165.013284,0.000145,2]
[341749430,1731193846451,-151.0,0.000145,2]
[341749431,1731193846460,-151.0,0.000145,2]
[341749432,1731193846470,-177.100992,0.000145,2]
[341749433,1731193846479,-177.100992,0.000145,2]
[341749434,1731193846489,-177.100992,0.000145,2]
[341749435,1731193846499,-177.100992,0.000145,2]
[341749436,1731193846509,-151.0,0.000145,2]
[341749437,1731193846519,-151.0,0.000145,2]
[341749438,1731193846529,-151.0,0.000145,2]
[341749439,1731193846538,-151.0,0.000145,2]
[341749440,1731193846548,-151.0,0.000145,2]
[341749441,1731193846558,-151.0,0.000145,2]
[341749442,1731193846568,-151.0,0.000145,2]
[341749443,1731193846578,-151.0,0.000145,2]
[341749444,1731193846588,-151.0,0.000145,2]
[341749445,1731193846601,-151.0,0.000145,2]
[341749446,1731193846614,-296.934753,0.000145,2]
[341749447,1731193846625,-169.424983,0.000145,2]
[341749448,1731193846635,-169.424983,0.000145,2]
[341749449,1731193846645,-169.424983,0.000145,2]
[341749450,1731193846655,-169.424983,0.000145,2]
[341749451,1731193846665,-892.635307,0.000145,2]
[341749452,1731193846674,-892.635307,0.000145,2]
[341749453,1731193846684,-892.635307,0.000145,2]
[341749454,1731193846695,-151.0,0.000145,2]
[341749455,1731193846705,-151.0,0.000145,2]
[341749456,1731193846714,-151.0,0.000145,2]
[341749457,1731193846724,-151.0,0.000145,2]
[341749458,1731193846734,-151.0,0.000145,2]
[341749459,1731193846745,-151.0,0.000145,2]
[341749460,1731193846758,-151.0,0.000145,2]
[341749461,1731193846768,-151.0,0.000145,2]
[341749462,1731193846779,-151.0,0.000145,2]
[341749463,1731193846789,-151.0,0.000145,2]
[341749464,1731193846799,-151.0,0.000145,2]
[341749465,1731193846810,-151.0,0.000145,2]
[341749466,1731193846820,-151.0,0.000145,2]
[341749467,1731193846831,-151.0,0.000145,2]
[341749468,1731193846842,-151.0,0.000145,2]
[341749469,1731193846854,-151.0,0.000145,2]
[341749470,1731193846866,-151.0,0.000145,2]
[341749471,1731193846877,-151.0,0.000145,2]
[341749472,1731193846887,-151.0,0.000145,2]
[341749473,1731193846899,-151.0,0.000145,2]
[341749474,1731193846909,-75.6246877,0.000145,2]
[341749475,1731193846946,-75.3753123,0.000145,2]
[341749476,1731193846956,-151.0,0.000145,2]
[341749477,1731193846965,-151.0,0.000145,2]
[341749478,1731193846975,-151.0,0.000145,2]
[341749479,1731193846985,-151.0,0.000145,2]
[341749480,1731193846994,-151.537195,0.000145,2]
[341749481,1731193847004,-281.015522,0.000145,2]
[341749482,1731193847013,-281.015522,0.000145,2]
[341749483,1731193847023,-281.015522,0.000145,2]
[341749484,1731193847033,-281.015522,0.000145,2]
[341749485,1731193847042,-151.0,0.000145,2]
[341749486,1731193847052,-151.0,0.000145,2]
[341749487,1731193847061,-151.0,0.000145,2]
[341749488,1731193847070,-151.0,0.000145,2]
[341749489,1731193847080,-165.961016,0.000145,2]
[341749490,1731193847090,-165.961016,0.000145,2]
[341749491,1731193847101,-428.50840679,0.00014511,2]
[341749492,1731193847507,-515.235,0.00014511,2]
[341749493,1731193847532,-278.70000812,0.00014511,2]
[341749494,1731193847544,-652.02454761,0.00014511,2]
[341749495,1731193847554,-1840.13,0.00014511,2]
[341749496,1731193847563,-785.76,0.00014511,2]
[341749497,1731193847573,-680.04775239,0.00014511,2]
[341749498,1731193847598,-2439.28005778,0.00014511,2]
[341749499,1731193847622,-1707.99218983,0.00014511,2]
[341749500,1731193847632,-1441.2,0.00014511,2]
[341749501,1731193847641,-162.84533251,0.00014525,2]
[341749502,1731193847651,-1874.46796252,0.00014567,2]
[341749503,1731193847660,-1874.46796252,0.00014622,2]
[341749504,1731193847669,-151.0,0.0001465,2]
[341749505,1731193847679,-188.941294,0.0001465,2]
[341749506,1731193847688,-188.941294,0.0001465,2]
[341749507,1731193847698,-152.276447,0.0001465,2]
[341749508,1731193847707,-189.782198,0.0001465,2]